fUSD/lending_fUSD_20250812
["ID","MTS","AMOUNT","RATE_DAILY","PERIOD"]
[378706384,1754973031886,-567.27921292,0.00036,120]
[378706385,1754973031895,-458.3,0.0003641,2]
[378706386,1754973031904,-239.52,0.00036593,2]
[378706387,1754973031913,-183.21,0.0003664,2]
[378706388,1754973031923,-9077.80031396,0.00036696,2]
[378706390,1754973031933,-23900.0,0.00036699,2]
[378706392,1754973031942,-1025.15,0.00036796,2]
[378706394,1754973031951,-169.97,0.000368,14]
[378706396,1754973031961,-2177.04464957,0.00036901,30]
[378706398,1754973031970,-153.80890889,0.00037259,2]
[378706400,1754973031980,-178.04,0.00037359,2]
[378706402,1754973031989,-280.0,0.000374,30]
[378706403,1754973031998,-9077.80031396,0.00037719,2]
[378706404,1754973032007,-163.13,0.00037993,2]
[378706405,1754973032016,-163.13,0.00038035,2]
[378706406,1754973032025,-163.13,0.00038077,2]
[378706407,1754973032034,-163.13,0.00038119,2]
[378706408,1754973032043,-163.13,0.00038161,2]
[378706409,1754973032053,-163.13,0.00038204,2]
[378706410,1754973032062,-163.13,0.00038246,2]
[378706411,1754973032071,-163.13,0.00038288,2]
[378706412,1754973032080,-163.13,0.0003833,2]
[378706413,1754973032089,-183.21,0.00038371,2]
[378706414,1754973032098,-163.13,0.00038373,2]
[378706415,1754973032107,-239.52,0.00038422,2]
[378706416,1754973032116,-1000.0,0.0003864,2]
[378706417,1754973032126,-9077.80031396,0.00038741,2]
[378706418,1754973032135,-150.0,0.00038835,2]
[378706419,1754973032144,-208.62,0.00038859,120]
[378706420,1754973032153,-317.07,0.00038862,2]
[378706421,1754973032162,-161.63,0.0003911,2]
[378706422,1754973032172,-2301.9,0.00039157,2]
[378706423,1754973032180,-9077.80031396,0.00039764,2]
[378706424,1754973032190,-160.13286531,0.0004,3]
[378706425,1754973032199,-1000.0,0.0004,120]
[378706426,1754973032208,-250.0,0.00040002,2]
[378706427,1754973032217,-183.21,0.00040101,2]
[378706428,1754973032226,-292.31,0.00040243,2]
[378706429,1754973032235,-239.52,0.00040252,2]
[378706430,1754973032244,-496.18,0.00040285,120]
[378706431,1754973032253,-666.0,0.00040659,3]
[378706432,1754973032262,-9077.80031396,0.00040787,15]
[378706433,1754973032271,-923.545,0.00040814,2]
[378706434,1754973032280,-388.0,0.0004114,30]
[378706435,1754973032289,-1000.0,0.00041402,120]
[378706436,1754973032298,-1008.0,0.000416,7]
[378706437,1754973032309,-9077.80031396,0.00041809,15]
[378706438,1754973032479,-183.21,0.00041831,120]
[378706439,1754973032488,-200.0,0.00041949,2]
[378706440,1754973032498,-200.0,0.00041949,2]
[378706441,1754973032507,-200.0,0.00041949,2]
[378706442,1754973032516,-200.0,0.00041949,2]
[378706443,1754973032525,-200.0,0.00041949,2]
[378706444,1754973032534,-200.0,0.00041949,2]
[378706445,1754973032543,-200.0,0.00041949,2]
[378706446,1754973032552,-200.0,0.00041949,2]
[378706447,1754973032561,-200.0,0.00041949,2]
[378706448,1754973032570,-200.0,0.00041949,2]
[378706449,1754973032579,-200.0,0.00041949,2]
[378706450,1754973032587,-200.0,0.00041949,2]
[378706451,1754973032599,-200.0,0.00041949,2]
[378706452,1754973032609,-200.0,0.00041949,2]
[378706453,1754973032618,-200.0,0.00041949,2]
[378706454,1754973032627,-200.0,0.00041949,2]
[378706455,1754973032635,-200.0,0.00041949,2]
[378706456,1754973032644,-200.0,0.00041949,2]
[378706457,1754973032654,-200.0,0.00041949,2]
[378706458,1754973032663,-200.0,0.00041949,2]
[378706459,1754973032673,-239.52,0.00042082,2]
[378706460,1754973032682,-600.66,0.00042186,30]
[378706461,1754973032692,-1000.0,0.00042465,120]
[378706462,1754973032701,-9077.80031396,0.00042832,15]
[378706463,1754973032710,-1570.0,0.000429,7]
[378706464,1754973032720,-178.04,0.00042963,2]
[378706465,1754973032729,-1000.0,0.0004347,2]
[378706466,1754973032738,-183.21,0.00043562,120]
[378706467,1754973032748,-400.5832,0.00043704,2]
[378706468,1754973032757,-776.59162406,0.00043714,28]
[378706469,1754973032766,-223.08669518,0.00043715,15]
[378706470,1754973032775,-2500.0,0.00043715,2]
[378706471,1754973032785,-3860.12202049,0.00043724,15]
[378706472,1754973032795,-10000.0,0.00043725,120]
[378706473,1754973032804,-5000.0,0.00043725,2]
[378706474,1754973032813,-595.76,0.00043731,30]
[378706475,1754973032822,-158.41151742,0.00043735,12]
[378706476,1754973032831,-48729.04997896,0.00043735,30]
[378706477,1754973033033,-40158.95002104,0.00043735,30]
[378706478,1754973033043,-287.25793163,0.00043804,2]
[378706479,1754973033052,-8964.28706723,0.00043805,3]
[378706480,1754973033090,888.0,0.00020049,3]
[378706481,1754973035759,-1776.0,0.00022289,3]
[378706482,1754973035770,-356.19,0.00040882,120]
[378706483,1754973035779,-888.0,0.00042449,3]
[378706484,1754973035788,-191.50528775,0.00043804,2]
[378706485,1754973035797,-3321.25622145,0.00043805,3]
[378706486,1754973035870,-387.38417069,0.00043739,31]
[378706487,1754973035879,-166.17128606,0.00043739,31]
[378706488,1754973035888,-127.36168115,0.00043739,31]
[378706489,1754973035932,-63.08638108,0.00043739,31]
[378706490,1754973035941,-732.67244002,0.00043805,3]
[378706491,1754973035951,-39054.6471862,0.00043814,3]
[378706492,1754973035959,-143200.373016,0.00043815,3]
[378706493,1754973035968,-56814.272561,0.00043815,3]
[378706494,1754973035977,-169.23,0.00043815,2]
[378706495,1754973035986,-509.70899861,0.00043815,7]
[378706496,1754973035995,-150.0,0.00043824,36]
[378706497,1754973036004,-151.0,0.00043824,14]
[378706498,1754973036014,-151.0,0.00043824,14]
[378706499,1754973036024,-233.15380678,0.00043824,14]
[378706500,1754973036033,-500.0,0.00043824,14]
[378706501,1754973036045,-500.0,0.00043824,14]
[378706502,1754973036056,-500.0,0.00043824,14]
[378706503,1754973036069,-239.84119403,0.00043824,14]
[378706504,1754973036081,-248.71531821,0.00043824,14]
[378706505,1754973036093,-257.91778498,0.00043824,14]
[378706506,1754973036103,-151.0,0.00043824,14]
[378706507,1754973036115,-267.46074303,0.00043824,14]
[378706508,1754973036129,-151.0,0.00043824,14]
[378706509,1754973036140,-277.35679052,0.00043824,14]
[378706510,1754973036152,-151.0,0.00043824,14]
[378706512,1754973036163,-287.61899177,0.00043824,14]
[378706514,1754973036175,-151.0,0.00043824,14]
[378706515,1754973036187,-298.26089446,0.00043824,14]
[378706516,1754973036199,-309.29654756,0.00043824,14]
[378706517,1754973036210,-151.0,0.00043824,14]
[378706519,1754973036221,-320.74051982,0.00043824,14]
[378706521,1754973036231,-151.0,0.00043824,14]
[378706523,1754973036243,-332.60791905,0.00043824,14]
[378706525,1754973036253,-151.0,0.00043824,14]
[378706527,1754973036266,-344.91441206,0.00043824,14]
[378706530,1754973036278,-151.0,0.00043824,14]
[378706532,1754973036288,-151.0,0.00043824,14]
[378706534,1754973036301,-357.6762453,0.00043824,14]
[378706536,1754973036313,-151.0,0.00043824,14]
[378706539,1754973036324,-370.91026638,0.00043824,14]
[378706541,1754973036336,-151.0,0.00043824,14]
[378706543,1754973036347,-384.63394623,0.00043824,14]
[378706545,1754973036359,-151.0,0.00043824,14]
[378706548,1754973036370,-398.86540225,0.00043824,14]
[378706550,1754973036382,-151.0,0.00043824,14]
[378706552,1754973036393,-151.0,0.00043824,14]
[378706554,1754973036405,-151.0,0.00043824,14]
[378706557,1754973036416,-65091.0786437,0.00043825,3]
[378706559,1754973036428,-56814.272561,0.00043825,3]
[378706561,1754973036439,-52668.42326349,0.00043825,2]
[378706564,1754973036453,-1261.81171911,0.00043825,2]
[378706566,1754973036467,-96516.78374198,0.00043825,2]
[378706569,1754973036480,-4628.61762012,0.00043825,2]
[378706571,1754973036493,-152.508696,0.00043825,14]
[378706573,1754973036503,-151.566368,0.00043825,14]
[378706576,1754973036514,-151.0,0.00043825,14]
[378706578,1754973036525,-151.0,0.00043825,14]
[378706580,1754973036536,-151.0,0.00043825,14]
[378706582,1754973036546,-212.732668,0.00043825,14]
[378706584,1754973036555,-447.383,0.00043825,3]
[378706586,1754973036567,-1000.0,0.00043825,3]
[378706588,1754973036578,-667.592,0.00043825,3]
[378706591,1754973036591,-32529.21509371,0.00043825,3]
[378706593,1754973036607,-27969.9289675,0.00043825,3]
[378706596,1754973036624,-888.0,0.00022789,3]
[378706598,1754973036634,-1279.87973827,0.00043825,3]
[378706601,1754973036651,-1776.0,0.00025029,3]
[378706603,1754973036663,-2555.86325208,0.00043825,3]
[378706606,1754973036678,-627.73886157,0.00043825,3]
[378706609,1754973036696,-306.68,0.00043825,3]
[378706616,1754973037446,-151.0,0.00043815,2]
[378706617,1754973037457,-284.38225918,0.00043825,3]
[378706633,1754973039370,-232.01057551,0.00043825,2]
[378706634,1754973039380,-563.32276808,0.00043825,3]
[378706635,1754973039480,-1950.44056536,0.00043825,3]
[378706636,1754973039493,-884.61586292,0.00043825,3]
[378706637,1754973039537,-756.2672248,0.00043825,3]
[378706998,1754973045372,-500.0,0.00036901,2]
[378706999,1754973045381,-125101.67112896,0.00043825,3]
[378707000,1754973045534,-11861.5,0.00043825,3]
[378707001,1754973045546,-14798.21572542,0.00043825,3]
[378707002,1754973045697,-888.0,0.00037401,3]
[378707003,1754973045707,-488.6193778,0.00039641,3]
[378707005,1754973121572,300.0,0.0002208,120]
[378707006,1754973122828,2500.0,0.0002208,120]
[378707007,1754973123510,1000.0,0.0002208,120]
[378707016,1754973807519,168.71,0.00013699,2]
[378707029,1754974182031,1014.11,0.000175,2]
[378707032,1754974231711,-474.81,0.00020073,2]
[378707033,1754974231873,-1227.92731524,0.00020073,2]
[378707034,1754974231984,-4222.18912199,0.00020073,2]
[378707035,1754974232050,888.0,0.00020573,3]
[378707036,1754974232143,-3426.51356277,0.00020073,2]
[378707037,1754974232153,-260.56889142,0.00020429,2]
[378707038,1754974232163,-2935.69,0.0002053,2]
[378707039,1754974232173,-1776.0,0.00022813,3]
[378707040,1754974232183,-155.96,0.000234,2]
[378707042,1754974232192,-230.63970512,0.000249,2]
[378707044,1754974232202,-1719.66722624,0.00027,7]
[378707046,1754974232211,-483.5843948,0.00027779,2]
[378707048,1754974232220,-2224.77103481,0.00027906,2]
[378707049,1754974232230,-600.0,0.00031954,7]
[378707051,1754974232239,-720.26,0.00032,2]
[378707053,1754974232249,-230.63970511,0.00032,17]
[378707055,1754974232258,-200.0,0.00034,30]
[378707057,1754974232267,-194.16,0.00035245,2]
[378707059,1754974232277,-503.1895707,0.00036907,2]
[378707061,1754974232286,-194.16,0.00036975,2]
[378707062,1754974232295,-152.0,0.00038,120]
[378707063,1754974232305,-3224.14397538,0.00038,120]
[378707064,1754974232315,-164.41,0.00038061,2]
[378707065,1754974232324,-194.16,0.00038705,2]
[378707066,1754974232333,-230.63970511,0.000391,32]
[378707067,1754974232343,-152.0,0.000393,120]
[378707068,1754974232353,-150.0,0.00039575,7]
[378707069,1754974232362,-150.0,0.00039575,7]
[378707070,1754974232371,-150.0,0.00039575,7]
[378707071,1754974232381,-150.0,0.00039575,7]
[378707072,1754974232391,-150.0,0.00039575,7]
[378707073,1754974232400,-150.0,0.00039575,7]
[378707074,1754974232409,-150.0,0.00039575,7]
[378707075,1754974232418,-150.0,0.00039575,7]
[378707076,1754974232427,-154.34063905,0.00039575,7]
[378707077,1754974232437,-150.0,0.00039575,7]
[378707078,1754974232446,-500.0,0.0003964,15]
[378707079,1754974232455,-344.10152012,0.0003964,15]
[378707080,1754974232465,-555.76822134,0.0003964,15]
[378707081,1754974232475,-500.0,0.0003964,15]
[378707082,1754974232484,-447.383,0.00039641,3]
[378707083,1754974232493,-1000.0,0.00039641,3]
[378707084,1754974232502,-667.592,0.00039641,3]
[378707085,1754974232512,-1287.3806222,0.00039641,3]
[378707086,1754974232522,-150.0,0.00039851,2]
[378707087,1754974232531,-543.88297196,0.0003989,2]
[378707088,1754974232541,-155.7,0.00039981,2]
[378707089,1754974232550,-229.15,0.00039981,2]
[378707090,1754974232559,-150.0,0.00040125,7]
[378707091,1754974232569,-559.35,0.00040177,2]
[378707092,1754974232578,-213.03,0.00040197,2]
[378707093,1754974232588,-13167.99,0.00040243,120]
[378707094,1754974232597,-2751.0,0.00040343,120]
[378707095,1754974232607,-350.83,0.0004036,7]
[378707096,1754974232616,-5000.0,0.00040376,120]
[378707097,1754974232625,-963.63,0.0004043,2]
[378707098,1754974232635,-194.16,0.00040436,2]
[378707099,1754974232644,-592.34,0.00040583,30]
[378707100,1754974232653,-150.0,0.00040675,7]
[378707101,1754974232662,-152.0,0.000407,120]
[378707102,1754974232671,-15700.9298423,0.00040811,2]
[378707103,1754974232682,-23900.0,0.00040812,2]
[378707104,1754974232692,-8189.82,0.00040839,2]
[378707105,1754974232701,-503.0,0.00041075,10]
[378707106,1754974232711,-150.0,0.00041224,30]
[378707107,1754974232720,-780.47,0.00041512,2]
[378707108,1754974232730,-606.76,0.00041521,30]
[378707109,1754974232739,-794.78231004,0.0004159,2]
[378707110,1754974232749,-150.0,0.00041774,30]
[378707111,1754974232758,-150.0,0.00041774,30]
[378707112,1754974232767,-150.0,0.00041774,30]
[378707113,1754974232777,-200.0,0.00041949,2]
[378707114,1754974232787,-200.0,0.00041949,2]
[378707115,1754974232796,-200.0,0.00041949,2]
[378707116,1754974232805,-200.0,0.00041949,2]
[378707117,1754974232815,-200.0,0.00041949,2]
[378707118,1754974232824,-200.0,0.00041949,2]
[378707119,1754974232833,-200.0,0.00041949,2]
[378707120,1754974232842,-200.0,0.00041949,2]
[378707121,1754974232852,-200.0,0.00041949,2]
[378707122,1754974232861,-200.0,0.00041949,2]
[378707123,1754974232870,-200.0,0.00041949,2]
[378707124,1754974232879,-200.0,0.00041949,2]
[378707125,1754974232888,-200.0,0.00041949,2]
[378707126,1754974232898,-200.0,0.00041949,2]
[378707127,1754974232907,-200.0,0.00041949,2]
[378707128,1754974232916,-200.0,0.00041949,2]
[378707129,1754974232926,-200.0,0.00041949,2]
[378707130,1754974232935,-200.0,0.00041949,2]
[378707131,1754974232947,-200.0,0.00041949,2]
[378707132,1754974232957,-200.0,0.00041949,2]
[378707133,1754974232967,-610.0,0.00041995,120]
[378707134,1754974232976,-152.0,0.00042,120]
[378707135,1754974232986,-572.119,0.000421,63]
[378707136,1754974232996,-666.0,0.000421,3]
[378707137,1754974233005,-194.16,0.00042166,120]
[378707138,1754974233014,-1000.0,0.00042175,2]
[378707139,1754974233024,-454.83,0.00042189,120]
[378707140,1754974233033,-150.0,0.00042324,30]
[378707141,1754974233043,-1000.0,0.00042465,120]
[378707142,1754974233053,-150.0,0.00042655,2]
[378707143,1754974233063,-181.05,0.00042655,2]
[378707144,1754974233072,-608.97,0.00042753,30]
[378707145,1754974233082,-835.00540557,0.00042843,2]
[378707146,1754974233091,-150.0,0.00042873,30]
[378707147,1754974233102,-169.33,0.00042971,2]
[378707148,1754974233113,-261.61145669,0.00043,120]
[378707149,1754974233122,-456.53146593,0.0004311,30]
[378707150,1754974233132,-400.0,0.000432,120]
[378707151,1754974233142,-152.0,0.000433,120]
[378707152,1754974233151,-361.61,0.000433,120]
[378707153,1754974233161,-400.0,0.000433,120]
[378707154,1754974233170,-400.0,0.0004331,120]
[378707155,1754974233180,-400.0,0.0004335,120]
[378707156,1754974233189,-400.0,0.0004338,120]
[378707157,1754974233199,-1006.65725739,0.0004339,2]
[378707158,1754974233209,-400.0,0.000434,120]
[378707159,1754974233218,-400.0,0.000434,120]
[378707160,1754974233227,-400.0,0.0004341,120]
[378707161,1754974233237,-150.0,0.00043423,30]
[378707162,1754974233246,-400.0,0.0004345,120]
[378707163,1754974233256,-400.0,0.0004348,120]
[378707164,1754974233266,-400.0,0.000435,120]
[378707165,1754974233276,-400.0,0.000435,120]
[378707166,1754974233285,-400.0,0.0004351,120]
[378707167,1754974233294,-609.79,0.00043519,30]
[378707168,1754974233303,-9600.0,0.000436,120]
[378707169,1754974233313,-603.59,0.000436,30]
[378707170,1754974233324,-603.16,0.000436,30]
[378707171,1754974233333,-589.77,0.000436,30]
[378707172,1754974233343,-604.16,0.000436,30]
[378707173,1754974233352,-160.31500743,0.00043705,120]
[378707174,1754974233362,-9194.54830503,0.00043708,15]
[378707175,1754974233371,-3272.9657029,0.00043715,15]
[378707176,1754974233381,-217.91125662,0.00043715,15]
[378707177,1754974233390,-8671.5558179,0.00043715,15]
[378707178,1754974233399,-717.13012546,0.00043715,28]
[378707179,1754974233409,-163.81444743,0.00043725,12]
[378707180,1754974233419,-1045.3142,0.00043725,2]
[378707181,1754974233428,-150.0,0.00043734,36]
[378707182,1754974233593,-15077.67333658,0.00043735,30]
[378707183,1754974233761,-3313.55157877,0.00043735,30]
[378707191,1754974237672,-888.0,0.00042012,3]
[378707192,1754974237683,-666.0,0.00042829,3]
[378707193,1754974237695,-11123.25238404,0.00043735,30]
[378707194,1754974237728,-20897.92825678,0.00043735,30]
[378707195,1754974237739,-888.0,0.00043735,30]
[378707196,1754974239528,-888.0,0.00042512,3]
[378707197,1754974239538,-3019.38718152,0.00043735,30]
[378707199,1754974239901,-888.0,0.00043012,3]
[378707200,1754974239912,-34568.20726231,0.00043735,30]
[378707201,1754974239922,-271.16891948,0.00043804,31]
[378707202,1754974239932,-112216.283537,0.00043805,3]
[378707203,1754974239943,-11221.6283537,0.00043814,3]
[378707204,1754974239953,-11221.6283537,0.00043814,3]
[378707205,1754974239963,-11221.6283537,0.00043815,3]
[378707206,1754974239973,-500.0,0.00043815,120]
[378707207,1754974239983,-34071.95267388,0.00043815,3]
[378707208,1754974239994,-15297.36247184,0.00043815,3]
[378707240,1754974242656,-639.29851046,0.00043815,3]
[378707245,1754974242713,-13227.27386979,0.00043815,3]
[378707246,1754974242725,-82645.28107203,0.00043815,3]
[378707247,1754974242735,-85756.26942064,0.00043815,3]
[378707248,1754974242746,-64757.69980891,0.00043815,3]
[378707249,1754974242769,-1581.826923,0.00043815,3]
[378707250,1754974242781,-5000.37644153,0.00043815,3]
[378707251,1754974242792,-5964.69212017,0.00043815,3]
[378707252,1754974242827,-502.49912,0.00043815,3]
[378707253,1754974242936,-1342.83667373,0.00043815,3]
[378707261,1754974245664,-3716.99678802,0.00043815,3]
[378707262,1754974245674,-169.23,0.00043815,2]
[378707263,1754974245683,-339.80599907,0.00043815,7]
[378707264,1754974245693,-5651.83771291,0.00043824,3]
[378707265,1754974245719,-1010.82230814,0.00043824,3]
[378707266,1754974245777,-2160.44549,0.00043824,3]
[378707267,1754974246411,-2398.52284265,0.00043824,3]
[378707268,1754974246421,-421.66944592,0.00043824,120]
[378707269,1754974246430,-1000.0,0.00043824,120]
[378707270,1754974246439,-1000.0,0.00043824,120]
[378707271,1754974246448,-1000.0,0.00043824,120]
[378707272,1754974246457,-1000.0,0.00043824,120]
[378707273,1754974246466,-1000.0,0.00043824,120]
[378707274,1754974246479,-1000.0,0.00043824,120]
[378707275,1754974246488,-999.00954291,0.00043824,120]
[378707276,1754974246497,-424.33788906,0.00043824,120]
[378707277,1754974246506,-280.75453472,0.00043824,14]
[378707278,1754974246515,-239.84119403,0.00043824,14]
[378707279,1754974246524,-248.71531821,0.00043824,14]
[378707280,1754974246533,-257.91778498,0.00043824,14]
[378707281,1754974246542,-267.46074303,0.00043824,14]
[378707282,1754974246551,-277.35679052,0.00043824,14]
[378707283,1754974246560,-287.61899177,0.00043824,14]
[378707284,1754974246569,-298.26089446,0.00043824,14]
[378707285,1754974246579,-309.29654756,0.00043824,14]
[378707286,1754974246587,-320.74051982,0.00043824,14]
[378707287,1754974246597,-332.60791905,0.00043824,14]
[378707288,1754974246606,-344.91441206,0.00043824,14]
[378707289,1754974246614,-357.6762453,0.00043824,14]
[378707290,1754974246623,-370.91026638,0.00043824,14]
[378707291,1754974246632,-384.63394623,0.00043824,14]
[378707292,1754974246642,-398.86540225,0.00043824,14]
[378707293,1754974246651,-151.0,0.00043824,14]
[378707294,1754974246661,-151.0,0.00043824,14]
[378707295,1754974246671,-162.72861807,0.00043824,14]
[378707296,1754974246680,-33664.8850612,0.00043825,3]
[378707297,1754974246689,-56207.732432,0.00043825,3]
[378707298,1754974246699,-70801.24887249,0.00043825,2]
[378707299,1754974246710,-1192.9972,0.00043825,2]
[378707300,1754974246724,-888.0,0.00043814,3]
[378707301,1754974246734,-3229.2632898,0.00043825,2]
[378707302,1754974246743,-872.44783633,0.00043825,2]
[378707303,1754974246754,-3756.16978379,0.00043825,2]
[378707304,1754974246763,-151.0,0.00043825,14]
[378707305,1754974246772,-212.732668,0.00043825,14]
[378707306,1754974246781,-151.0,0.00043825,14]
[378707307,1754974246790,-151.0,0.00043825,14]
[378707308,1754974246799,-151.560114,0.00043825,14]
[378707309,1754974246809,-182.08312,0.00043825,20]
[378707310,1754974246818,-152.471437,0.00043825,14]
[378707311,1754974246827,-999.9,0.00043825,30]
[378707312,1754974246836,-38444.24704917,0.00043825,3]
[378707323,1754974748843,168.71,0.00013699,2]
[378707327,1754974815354,150.0,0.000175,2]
[378707329,1754974845846,399.0,0.000141,14]
[378707337,1754975409892,2000.0,0.000215,90]
[378707361,1754975431936,-370.0,0.000251,7]
[378707362,1754975431946,-200.0,0.000271,7]
[378707363,1754975431955,-501.00324206,0.0003505,120]
[378707364,1754975432149,-2.86486694,0.0003505,120]
[378707365,1754975432159,-519.0,0.00035616,120]
[378707366,1754975432168,-153.28,0.00037158,2]
[378707367,1754975432177,-153.28,0.00038985,2]
[378707368,1754975432187,-150.00000001,0.00039575,7]
[378707369,1754975432196,-150.0,0.00039575,7]
[378707370,1754975432206,-150.0,0.00039575,7]
[378707371,1754975432215,-150.0,0.00039575,7]
[378707372,1754975432224,-150.0,0.00039575,7]
[378707373,1754975432234,-200.0,0.0004,120]
[378707374,1754975432243,-153.28,0.00040811,2]
[378707375,1754975432252,-250.0,0.000414,120]
[378707376,1754975432261,-168.21516127,0.00041748,88]
[378707377,1754975432270,-1009.97997178,0.00041763,5]
[378707378,1754975432282,-1190.02002822,0.00041763,5]
[378707379,1754975432292,-1200.0,0.00041764,5]
[378707380,1754975432302,-5000.0,0.00041765,120]
[378707381,1754975432312,-467.8374,0.00041848,2]
[378707382,1754975432321,-666.0,0.00041867,3]
[378707383,1754975432331,-1000.0,0.00041894,2]
[378707384,1754975432340,-9666.62,0.00041927,2]
[378707385,1754975432350,-229.15,0.00042058,2]
[378707386,1754975432359,-213.03,0.00042295,2]
[378707387,1754975432368,-200.0,0.00042305,2]
[378707389,1754975432378,-1000.0,0.00042445,2]
[378707390,1754975432388,-153.28,0.00042638,120]
[378707392,1754975432399,-228.45,0.0004266,2]
[378707394,1754975432409,-462.99,0.00042815,120]
[378707396,1754975432418,-175.78404,0.00043,120]
[378707398,1754975432427,-632.8994965,0.00043,30]
[378707400,1754975432437,-457.695,0.00043178,66]
[378707402,1754975432446,-599.63,0.00043179,30]
[378707403,1754975432456,-1500.0,0.0004325,120]
[378707405,1754975432466,-7026.08900231,0.00043373,2]
[378707407,1754975432475,-1000.0,0.00043561,120]
[378707409,1754975432484,-1000.0,0.00043561,120]
[378707411,1754975432494,-1000.0,0.00043561,120]
[378707413,1754975432503,-1000.0,0.00043561,120]
[378707415,1754975432513,-1000.0,0.00043561,120]
[378707416,1754975432523,-798.12271317,0.00043561,120]
[378707418,1754975432532,-587.92935153,0.00043635,6]
[378707420,1754975432541,-603.94,0.00043719,30]
[378707423,1754975432550,-290.37029654,0.00043724,31]
[378707425,1754975432559,-507.9598449,0.00043724,31]
[378707427,1754975432568,-189.81824364,0.00043724,31]
[378707429,1754975432577,-8485.4876263,0.00043725,15]
[378707431,1754975432587,-3054.76798942,0.00043725,15]
[378707433,1754975432596,-213.36509868,0.00043725,15]
[378707434,1754975432605,-5000.0,0.00043725,2]
[378707436,1754975432614,-710.4423,0.00043725,120]
[378707437,1754975432623,-163.8144474,0.00043735,12]
[378707438,1754975432632,-88888.0,0.00043735,30]
[378707439,1754975432642,-200.0,0.00043808,2]
[378707440,1754975432651,-200.0,0.00043808,2]
[378707441,1754975432661,-200.0,0.00043808,2]
[378707442,1754975432670,-200.0,0.00043808,2]
[378707443,1754975432679,-200.0,0.00043808,2]
[378707444,1754975432689,-200.0,0.00043808,2]
[378707445,1754975432699,-200.0,0.00043808,2]
[378707446,1754975432708,-200.0,0.00043808,2]
[378707447,1754975432717,-200.0,0.00043808,2]
[378707448,1754975432726,-200.0,0.00043808,2]
[378707449,1754975432735,-200.0,0.00043808,2]
[378707450,1754975432744,-200.0,0.00043808,2]
[378707451,1754975432754,-200.0,0.00043808,2]
[378707452,1754975432763,-200.0,0.00043808,2]
[378707453,1754975432772,-200.0,0.00043808,2]
[378707454,1754975432781,-200.0,0.00043808,2]
[378707455,1754975432791,-200.0,0.00043808,2]
[378707456,1754975432800,-200.0,0.00043808,2]
[378707457,1754975432809,-200.0,0.00043808,2]
[378707458,1754975432818,-200.0,0.00043808,2]
[378707459,1754975432827,-1571.77216776,0.0004381,60]
[378707460,1754975432837,-150.0,0.00043815,36]
[378707461,1754975432846,-152.62008827,0.00043824,30]
[378707462,1754975432855,-365.19869913,0.00043824,30]
[378707463,1754975432864,-600.0,0.00043824,30]
[378707464,1754975432873,-600.0,0.00043824,30]
[378707465,1754975432882,-600.0,0.00043824,30]
[378707466,1754975432891,-151.0,0.00043824,30]
[378707467,1754975432900,-600.0,0.00043824,30]
[378707468,1754975432909,-151.0,0.00043824,30]
[378707469,1754975432919,-500.0,0.00043824,30]
[378707470,1754975432928,-600.0,0.00043824,30]
[378707471,1754975432937,-151.0,0.00043824,30]
[378707472,1754975432946,-200.0,0.00043824,30]
[378707473,1754975432955,-500.0,0.00043824,30]
[378707474,1754975432964,-151.0,0.00043824,30]
[378707475,1754975432973,-207.4,0.00043824,30]